bitfinex/quotes_ETHUSD_20241207
["timestamp","ask_amount","ask_price","bid_price","bid_amount"]
[1733584903752,0.12193027,3995.2,3994.6,0.8094]
[1733584904048,0.7951,3996.0,3994.7,0.7931]
[1733584904203,0.7951,3996.0,3995.5,1.75196]
[1733584904397,0.7951,3996.4,3995.0,1.75216]
[1733584904610,0.7951,3995.8,3994.7,0.7931]
[1733584905016,0.1221512,3995.7,3994.7,0.7931]
[1733584905394,0.1221512,3995.7,3994.2,2.34735671]
[1733584905518,0.1221512,3995.7,3994.3,0.7931]
[1733584905519,0.7951,3995.6,3994.3,0.7931]
[1733584905714,0.7951,3995.1,3993.9,0.7931]
[1733584906060,1.04982,3995.1,3993.9,0.7931]
[1733584906235,0.12188704,3995.0,3993.9,0.7931]
[1733584906405,0.12188704,3995.0,3994.1,1.75258]
[1733584907239,0.12188704,3995.0,3993.9,0.7931]
[1733584907240,1.87408704,3995.0,3993.9,0.7931]
[1733584907404,0.7951,3994.9,3993.8,1.75267]
[1733584907601,0.2669187,3994.8,3993.8,1.75267]
[1733584907910,0.12188704,3994.7,3993.8,1.75267]
[1733584910036,0.12188704,3994.7,3994.4,2.54555]
[1733584910212,0.12188704,3994.7,3994.1,1.75255]
[1733584910445,0.7951,3995.2,3994.1,2.54565]
[1733584910619,0.7951,3995.2,3994.1,1.222933]
[1733584910829,0.7951,3995.5,3994.6,0.7931]
[1733584911220,0.12145945,3995.4,3995.0,1.75218]
[1733584911631,0.12158437,3995.3,3995.0,1.75218]
[1733584911862,0.7951,3995.8,3995.0,1.75218]
[1733584912062,0.7951,3995.8,3994.7,0.7931]
[1733584912296,0.12158437,3995.7,3994.8,1.75227]
[1733584912577,0.12158437,3995.7,3995.0,1.75218]
[1733584912730,0.12158437,3995.7,3994.9,0.429773]
[1733584912931,0.12158437,3995.7,3995.2,1.7521]
[1733584913140,0.12158437,3995.7,3995.2,2.5452]
[1733584913350,2.34095774,3996.0,3995.2,2.5452]
[1733584913584,0.12158437,3995.6,3995.2,2.5452]
[1733584913959,1.04437812,3996.0,3995.2,0.7931]
[1733584914152,0.12199267,3995.5,3995.2,0.7931]
[1733584914465,2.34284798,3995.9,3995.2,0.7931]
[1733584914660,0.12199747,3995.4,3995.2,0.7931]
[1733584914877,2.34284798,3995.9,3995.2,0.7931]
[1733584915179,0.12199747,3995.3,3994.5,2.54549]
[1733584915472,1.29846986,3995.6,3994.5,2.54549]
[1733584915697,0.12202629,3995.2,3994.5,2.54549]
[1733584915970,2.34284798,3995.6,3994.5,2.54549]
[1733584915971,2.34284798,3995.6,3994.5,0.7931]
[1733584916135,0.12202629,3995.1,3994.8,1.75227]
[1733584916348,3.13794798,3995.7,3994.9,0.175227]
[1733584916564,0.12202629,3995.0,3994.8,1.75227]
[1733584916818,2.094444,3995.7,3994.8,1.75227]
[1733584917319,0.12202629,3995.6,3994.8,1.75227]
[1733584918242,1.16640441,3995.6,3994.8,1.75227]
[1733584918398,1.29995314,3995.5,3994.8,1.75227]
[1733584918593,1.16640441,3995.6,3994.8,1.75227]
[1733584918913,1.42197179,3995.5,3994.8,1.75227]
[1733584919237,0.12202629,3995.5,3994.8,1.75227]
[1733584919449,0.12202629,3995.5,3995.2,1.75208]
[1733584919827,1.04437812,3995.7,3995.2,1.75208]
[1733584919996,0.12239138,3995.4,3995.2,1.75208]
[1733584920370,1.56656719,3995.9,3995.0,0.7931]
[1733584920371,1.04437812,3995.8,3995.0,0.7931]
[1733584920587,1.04437812,3995.8,3995.1,1.75214]
[1733584920588,0.12239138,3995.3,3995.1,1.75214]
[1733584920866,1.04437812,3995.8,3995.4,1.75199]
[1733584921058,1.04437812,3995.8,3995.0,0.7931]
[1733584921059,1.30020564,3995.7,3995.0,0.7931]
[1733584921353,1.04437812,3995.8,3995.5,1.75194]
[1733584921571,1.04437812,3995.9,3995.7,1.75188]
[1733584921717,1.04437812,3996.3,3995.7,0.48923367]
[1733584921918,1.23862831,3997.2,3995.7,0.48923367]
[1733584921919,1.04437812,3996.4,3996.3,0.7931]
[1733584922119,1.04437812,3996.7,3996.3,0.7931]
[1733584922323,1.04437812,3997.1,3996.4,1.75155]
[1733584922550,1.23862831,3997.2,3996.3,0.7931]
[1733584922551,2.28300643,3997.2,3996.5,1.75152]
[1733584922725,1.29935321,3997.1,3996.5,1.75152]
[1733584922929,2.8519116,3997.2,3996.6,1.75147]
[1733584923124,1.04437812,3997.1,3996.3,0.7931]
[1733584923421,1.29937799,3997.1,3996.3,2.54468]
[1733584923646,1.29937799,3997.1,3996.4,1.75157]
[1733584923927,2.8519116,3997.2,3996.4,1.75157]
[1733584924443,1.80753348,3997.2,3996.4,1.75157]
[1733584925476,1.80753348,3997.2,3996.3,0.7931]
[1733584925621,0.49451835,3997.1,3996.3,0.7931]
[1733584925819,0.49451835,3997.1,3996.3,2.54471]
[1733584927779,0.12328442,3997.0,3996.3,2.54471]
[1733584928124,1.23862831,3997.2,3996.3,0.7931]
[1733584928320,0.12328442,3996.9,3996.3,2.54471]
[1733584928564,1.23862831,3997.2,3996.3,2.54471]
[1733584929160,0.12324602,3997.1,3996.3,2.54471]
[1733584929321,0.12324602,3997.1,3996.3,0.7931]
[1733584930124,0.12324602,3997.1,3996.0,2.34735671]
[1733584930324,0.12324602,3997.1,3996.0,4.91259671]
[1733584930520,0.12324602,3997.1,3996.0,3.16085671]
[1733584930766,0.12324602,3997.1,3995.7,0.48923367]
[1733584930767,0.12324602,3997.1,3996.7,1.75144]
[1733584931073,0.12324602,3997.1,3996.7,0.02501923]
[1733584931563,0.12324602,3997.1,3997.0,2.56481]
[1733584931979,0.39063245,3997.2,3997.0,2.56481]
[1733584932184,0.39063245,3997.2,3997.0,0.8135]
[1733584932387,1.04437812,3998.2,3997.0,0.8135]
[1733584932534,0.26109453,3998.2,3997.4,1.75113]
[1733584932735,0.12318363,3998.1,3997.5,0.8135]
[1733584932953,0.7861,3998.4,3997.5,0.8135]
[1733584933357,0.12429708,3998.3,3997.5,0.8135]
[1733584934845,0.12429708,3998.3,3997.7,1.75099]
[1733584935177,1.75039,3999.1,3997.6,0.8135]
[1733584935340,0.3932014,3999.0,3997.8,1.75096]
[1733584935565,0.51770957,3999.0,3997.8,1.75096]
[1733584936002,0.51770957,3999.0,3997.3,3.16085671]
[1733584936003,2.30052,3998.8,3997.3,3.16085671]
[1733584936146,2.30052,3998.8,3997.3,0.8135]
[1733584936147,0.55,3998.6,3997.3,0.8135]
[1733584936496,0.7861,3998.5,3997.3,0.8135]
[1733584936703,0.13361,3998.4,3997.3,0.8135]
[1733584936990,1.88432,3998.4,3997.3,0.8135]
[1733584937193,0.1246089,3998.3,3997.3,0.8135]
[1733584937992,0.1246089,3998.3,3997.5,1.75108]
[1733584938560,0.1246089,3998.3,3998.2,4.91163671]
[1733584938749,0.1246089,3998.3,3998.2,5.40280038]
[1733584938954,0.3511459,3999.3,3998.2,5.40280038]
[1733584939178,0.3511459,3999.3,3998.2,0.8135]
[1733584939399,0.12448419,3999.2,3998.2,0.8135]
[1733584940583,0.12448419,3999.2,3998.2,3.16085671]
[1733584940818,0.12448419,3999.2,3998.6,1.75059]
[1733584941406,0.3511459,3999.3,3998.8,1.75051]
[1733584941694,0.3511459,3999.3,3998.4,1.7507]
[1733584941905,0.3511459,3999.3,3998.5,0.69373784]
[1733584942206,0.12484393,3999.2,3998.7,1.75056]
[1733584942381,0.12484393,3999.2,3998.8,1.7505]
[1733584942582,0.3511459,3999.3,3998.8,1.7505]
[1733584942758,0.3511459,3999.3,3998.9,1.75047]
[1733584942952,0.3511459,3999.3,3998.6,3.16085671]
[1733584943168,2.1014559,3999.3,3998.3,0.8024]
[1733584943526,2.31160149,3999.3,3998.3,0.8024]
[1733584943813,2.31160149,3999.3,3997.3,3.0]
[1733584943814,1.75046,3999.0,3997.9,0.8024]
[1733584944116,0.12576468,3998.9,3997.9,0.8024]
[1733584944428,0.12576468,3998.9,3998.6,2.34735671]
[1733584944722,0.774,3999.2,3998.2,2.34735671]
[1733584944866,0.774,3999.2,3998.3,0.58740248]
[1733584945265,0.3511459,3999.3,3998.5,1.75063]
[1733584945569,0.12143511,3999.1,3998.5,1.75063]
[1733584945815,0.3511459,3999.3,3998.5,1.75063]
[1733584945970,0.12143511,3999.0,3998.5,1.75063]
[1733584946308,0.12143511,3998.9,3998.6,0.23380325]
[1733584946471,0.3511459,3999.3,3998.6,0.23380325]
[1733584946854,0.12143511,3998.8,3998.6,0.23380325]
[1733584947003,0.3511459,3999.3,3998.6,0.23380325]
[1733584947513,0.12143511,3999.2,3998.6,0.23380325]
[1733584947813,0.12143511,3999.2,3998.7,0.19844333]
[1733584948773,0.12143511,3999.2,3998.3,2.33813248]
[1733584949809,0.12143511,3999.2,3998.3,0.58740248]
[1733584950167,0.12143511,3999.2,3998.2,4.09813671]
[1733584950591,1.87179511,3999.2,3998.2,2.34735671]
[1733584950934,0.8072,3999.0,3997.9,2.55331]
[1733584951292,0.12143511,3998.9,3997.9,2.55331]
[1733584952812,0.12143511,3998.9,3998.0,1.75084]
[1733584953013,0.12143511,3998.9,3998.1,0.49256068]
[1733584953913,0.8072,3999.0,3998.1,0.49256068]
[1733584954097,0.12143511,3998.8,3998.1,0.49256068]
[1733584954310,0.8072,3999.0,3998.1,0.49256068]
[1733584954623,0.12143511,3998.7,3998.1,0.49256068]
[1733584954827,0.8072,3999.0,3998.1,0.49256068]
[1733584954999,0.12143511,3998.6,3998.1,0.49256068]
[1733584955202,0.8072,3999.0,3998.1,0.49256068]
[1733584955505,0.8072,3999.0,3997.9,2.5533]
[1733584955705,0.12143511,3998.9,3997.9,2.5533]
[1733584956722,1.87193511,3998.9,3997.9,0.8024]
[1733584957841,0.12143511,3998.9,3997.9,0.8024]
[1733584958124,0.12143511,3998.9,3997.9,0.82741003]
[1733584958332,0.12143511,3998.9,3998.2,1.75074]
[1733584959885,0.12143511,3998.9,3998.2,2.34735671]
[1733584960090,0.12143511,3998.9,3998.6,0.7849]
[1733584960398,0.3511459,3999.3,3998.6,0.7849]
[1733584960928,0.1212573,3999.2,3998.6,2.53549]
[1733584961270,0.1212573,3999.2,3998.6,3.38830634]
[1733584961345,0.1212573,3999.2,3998.7,1.75052]
[1733584961486,0.1212573,3999.2,3998.6,3.38830634]
[1733584961917,0.3511459,3999.3,3998.6,3.38830634]
[1733584962110,0.3511459,3999.3,3998.9,1.75047]
[1733584964732,0.12150714,3999.2,3998.9,1.75047]
[1733584964945,0.3511459,3999.3,3998.9,1.75047]
[1733584965122,0.3511459,3999.3,3998.9,2.26434763]
[1733584965642,0.12150714,3999.2,3998.9,2.26434763]
[1733584966018,0.3511459,3999.3,3998.9,2.26434763]
[1733584966621,0.12150714,3999.2,3998.9,2.26434763]
[1733584967015,0.3511459,3999.3,3998.9,2.26434763]
[1733584967353,0.12150714,3999.2,3998.9,2.26434763]
[1733584967551,0.3511459,3999.3,3998.9,0.51387763]
[1733584967713,0.12150714,3999.1,3998.7,1.75056]
[1733584968055,0.3511459,3999.3,3998.7,1.75056]
[1733584968253,0.3511459,3999.3,3998.8,1.75051]
[1733584968409,0.12150714,3999.2,3998.8,1.75051]
[1733584968602,0.12150714,3999.2,3998.9,0.27914596]
[1733584968806,0.3511459,3999.3,3998.9,0.27914596]
[1733584969033,0.12150714,3999.1,3998.9,0.27914596]
[1733584969215,0.3511459,3999.3,3998.9,0.27914596]
[1733584969643,0.12150714,3999.2,3998.9,0.27914596]
[1733584969845,0.12150714,3999.2,3999.0,0.2029656]
[1733584970610,0.12150714,3999.2,3998.6,0.7849]
[1733584971217,0.12150714,3999.2,3998.6,2.5355]
[1733584973817,0.12150714,3999.2,3998.6,0.7849]
[1733584974455,0.12150714,3999.2,3998.8,1.75051]
[1733584974658,0.12150714,3999.2,3998.9,0.02500437]
[1733584974819,0.12150714,3999.2,3998.6,3.13225671]
[1733584975015,0.12150714,3999.2,3998.8,1.75048]
[1733584976030,0.12150714,3999.2,3998.9,1.75047]
[1733584976468,0.12150714,3999.2,3998.7,0.48828667]
[1733584976631,0.12150714,3999.2,3999.1,1.75039]
[1733584977932,0.12150714,3999.2,3998.7,0.48828667]
[1733584978131,0.12150714,3999.2,3998.9,1.75046]
[1733584978723,0.12150714,3999.2,3999.0,1.75043]
[1733584981176,0.12150714,3999.2,3998.7,0.48828667]
[1733584981382,0.12150714,3999.2,3999.1,1.75039]
[1733584981731,0.12150714,3999.2,3999.1,2.57069]
[1733584982078,1.29862953,3999.9,3999.4,1.75023]
[1733584982276,1.04437812,4000.0,3999.4,1.75023]
[1733584982577,2.34307621,3999.9,3999.2,1.75034]
[1733584982733,1.29869809,3999.8,3999.3,0.49179967]
[1733584982926,1.04437812,3999.9,3999.3,0.49179967]
[1733584983277,1.04437812,4000.0,3999.3,0.49179967]
[1733584983571,2.3433193,3999.9,3999.2,1.75034]
[1733584983784,1.04437812,3999.7,3999.4,2.55305]
[1733584984073,1.04437812,4000.1,3999.7,1.75011]
[1733584984408,1.29906828,4000.0,3999.7,1.75011]
[1733584984544,1.04437812,4000.1,3999.7,1.75011]
[1733584984872,1.79707812,4000.2,3999.5,1.75021]
[1733584985078,1.29905481,4000.1,3999.5,1.75021]
[1733584985234,1.79707812,4000.2,3999.6,1.75015]
[1733584985568,1.29878161,4000.1,3999.6,1.75015]
[1733584985767,1.79707812,4000.2,3999.6,1.75015]
[1733584986172,0.7527,4000.2,3999.6,1.75015]
[1733584987136,2.05095319,4000.2,3999.7,1.75012]
[1733584987337,2.05095316,4000.2,3999.7,1.75012]
[1733584987574,0.11373827,4000.1,3999.7,1.75012]
[1733584988593,1.29801146,4000.3,3999.7,2.005412]
[1733584988746,0.11373827,4000.0,3999.7,2.005412]
[1733584988947,1.29800451,4000.3,3999.7,2.005412]
[1733584989187,0.11373827,3999.9,3999.4,0.8028]
[1733584989390,2.34216268,4000.3,3999.4,2.55304]
[1733584989595,0.11373827,3999.8,3999.1,0.8028]
[1733584989790,0.7527,4000.2,3999.1,2.55315]
[1733584989791,1.04437812,4000.0,3999.1,2.55315]
[1733584990095,0.11373827,3999.7,3999.1,2.55315]
[1733584990256,1.04437812,4000.0,3999.2,0.255315]
[1733584990452,0.11373827,3999.6,3999.2,0.255315]
[1733584990657,1.04437812,4000.0,3999.2,0.255315]
[1733584990863,0.11373827,3999.5,3999.2,0.255315]
[1733584991167,0.11373827,3999.4,3999.2,0.255315]
[1733584991406,1.29793515,3999.9,3999.2,0.255315]
[1733584991700,1.29793515,3999.9,3999.3,0.2808465]
[1733584992254,1.04437812,4000.0,3999.3,0.30584831]
[1733584992564,1.29784773,4000.0,3999.3,0.02500181]
[1733584992761,1.29784773,4000.0,3999.3,1.7503]
[1733584992981,1.29784773,4000.0,3999.1,2.55318]
[1733584993189,0.7527,3999.9,3999.1,0.8028]
[1733584993398,1.29785311,3999.8,3998.9,1.75047]
[1733584993679,1.29785408,3999.8,3999.0,0.30415567]
[1733584993861,1.79707812,3999.9,3999.0,2.05455567]
[1733584994081,0.7527,3999.9,3999.4,1.75025]
[1733584994276,1.04437812,4000.1,3999.5,1.75021]
[1733584994504,1.29782648,4000.1,3999.5,2.24024667]
[1733584994714,2.3422046,4000.1,3999.5,2.24024667]
[1733584995016,1.29782648,4000.0,3999.5,0.49003667]
[1733584995705,1.29782648,4000.0,3999.3,2.5531]
[1733584996368,1.29782648,4000.0,3999.0,1.10695567]
[1733584996569,0.7527,3999.9,3999.0,2.85734567]
[1733584997673,0.7527,3999.9,3999.1,1.75038]
[1733584997979,3.09489689,3999.9,3999.1,1.75038]
[1733584998178,0.7527,3999.9,3999.2,0.28573357]
[1733584998404,1.79707812,3999.9,3999.2,0.28573357]
[1733584998786,1.29793966,3999.8,3999.2,0.28573357]
[1733584999095,1.29793966,3999.8,3999.0,1.10695567]
[1733584999673,1.79707812,3999.9,3999.0,1.10695567]
[1733584999874,1.29809456,3999.8,3999.0,1.10695567]
[1733585000111,1.29809735,3999.8,3999.0,2.85737567]
[1733585000324,1.04437812,3999.8,3999.0,2.85737567]
[1733585000500,1.79707812,3999.9,3999.1,0.52047324]
[1733585000672,2.34260193,3999.8,3999.0,2.05457567]
[1733585000875,1.29822303,3999.7,3999.0,0.30415567]
[1733585001068,1.29822303,3999.7,3998.7,2.55333]
[1733585001311,1.04437812,3999.8,3998.7,2.55333]
[1733585002180,1.29861002,3999.7,3998.7,2.55333]
[1733585002401,1.75026,3999.4,3998.3,0.8028]
[1733585002676,0.7527,3999.3,3998.3,0.8028]
[1733585002910,0.86681448,3999.3,3998.3,0.8028]
[1733585003239,1.04437812,3999.1,3998.3,0.8028]
[1733585003389,1.29898757,3999.0,3998.3,0.8028]
[1733585003586,0.11396014,3999.0,3998.3,0.8028]
[1733585003999,1.04437812,3999.1,3998.2,1.75074]
[1733585004189,0.11396014,3998.9,3998.2,1.75074]
[1733585004375,0.8021,3998.8,3998.0,0.8106]
[1733585004607,0.91596849,3998.8,3998.1,0.31579567]
[1733585004917,0.91596849,3998.8,3998.1,2.06661567]
[1733585005490,0.11386849,3998.8,3998.3,1.75073]
[1733585005803,1.04437812,3999.0,3998.4,0.02500713]
[1733585006002,0.11386849,3998.7,3998.4,0.02500713]
[1733585006177,1.04437812,3999.0,3998.5,0.17757371]
[1733585006376,0.11386849,3998.6,3998.4,0.02500713]
[1733585006612,1.29916513,3999.0,3998.3,1.77573751]
[1733585006808,1.29916513,3999.0,3998.1,0.31579567]
[1733585006809,0.11386849,3998.5,3998.1,0.31579567]
[1733585006986,1.29916311,3999.0,3998.1,2.06661567]
[1733585007205,0.11386849,3998.4,3998.1,2.06661567]
[1733585007381,1.29911729,3999.0,3998.2,0.52245724]
[1733585007618,0.11386849,3998.3,3998.2,0.52245724]
[1733585007822,1.29911427,3999.0,3998.2,0.52245724]
[1733585008050,1.84647812,3999.1,3998.2,0.52245724]
[1733585008175,0.11386849,3998.9,3998.2,0.52245724]
[1733585008381,1.84647812,3999.1,3998.2,0.52245724]
[1733585008584,0.11386849,3998.8,3998.7,4.09791671]
[1733585008783,0.8021,3999.4,3998.8,1.75049]
[1733585008991,0.8021,3999.4,3998.7,2.34735671]
[1733585008992,1.04437812,3999.5,3999.2,1.75034]
[1733585009201,2.08875625,3999.9,3999.2,1.75034]
[1733585009202,1.04437812,3999.9,3999.3,0.8106]
[1733585009485,1.29877022,3999.8,3999.3,0.8106]
[1733585009684,1.04437812,3999.9,3999.3,0.8106]
[1733585010019,2.34309966,3999.8,3999.3,0.8106]
[1733585010232,1.04437812,3999.9,3999.3,0.8106]
[1733585010521,1.29874561,3999.8,3999.3,0.8106]
[1733585010721,1.04437812,3999.8,3999.3,0.8106]
[1733585011305,1.29878914,3999.7,3999.3,0.8106]
[1733585011526,1.04437812,3999.9,3999.3,0.8106]
[1733585011688,1.04437812,3999.9,3999.4,1.75026]
[1733585012041,1.84647812,4000.0,3999.4,1.75026]
[1733585012320,1.298705,3999.9,3999.4,1.75026]
[1733585012628,1.84647812,4000.0,3999.4,1.75026]
[1733585012810,1.29868734,3999.9,3999.4,1.75026]
[1733585013008,1.84647812,4000.0,3999.4,1.75026]
[1733585013216,1.29870212,3999.9,3999.4,1.75026]
[1733585013411,1.84647812,4000.0,3999.4,1.75026]
[1733585013611,1.29869156,3999.9,3999.4,1.75026]
[1733585013925,1.84647812,4000.0,3999.4,1.77526148]
[1733585014098,1.84647812,4000.0,3999.6,1.75017]
[1733585014099,1.29867733,3999.9,3999.6,1.75017]
[1733585014385,1.04437812,4000.0,3999.6,1.75017]
[1733585014614,1.2986743,3999.9,3999.6,1.75017]
[1733585014792,1.04437812,4000.0,3999.6,1.75017]
[1733585015125,1.04437812,4000.1,3999.6,1.75017]
[1733585015326,1.29864672,4000.0,3999.6,1.75017]
[1733585015627,1.04437812,4000.0,3999.6,1.75017]
[1733585016028,1.04437812,4000.1,3999.6,1.75017]
[1733585016326,1.29864483,4000.0,3999.6,1.75017]
[1733585016506,1.04437812,4000.0,3999.6,1.75014]
[1733585016829,1.04437812,4000.1,3999.7,1.75012]
[1733585016989,1.29864359,4000.0,3999.7,1.75012]
[1733585017190,1.04437812,4000.0,3999.7,1.75012]
[1733585017618,0.11384919,3999.9,3999.3,0.8106]
[1733585017787,0.11384919,3999.9,3999.5,1.75021]
[1733585018538,0.11384919,3999.9,3999.0,0.8106]
[1733585018698,0.11384919,3999.9,3999.1,1.75038]
[1733585018699,1.29875094,3999.8,3999.1,1.75038]
[1733585019032,1.29875094,3999.8,3999.0,1.1390815]
[1733585019033,0.8021,3999.6,3999.0,0.8106]
[1733585019397,0.11400831,3999.5,3999.0,0.8106]
[1733585019603,0.11400831,3999.5,3999.0,2.56102]
[1733585019840,0.11400831,3999.5,3999.0,1.75042]
[1733585020139,1.2990199,3999.4,3998.8,1.75051]
[1733585020347,1.04437812,3999.4,3998.8,1.75051]
[1733585020544,1.29911063,3999.3,3998.8,1.75051]
[1733585020836,1.29913453,3999.2,3998.6,2.5612]
[1733585021002,1.15856492,3999.3,3998.7,1.75055]
[1733585021232,0.11417716,3999.1,3998.7,1.75055]
[1733585021422,1.04437812,3999.3,3998.7,1.75055]
[1733585021743,0.11417716,3999.0,3998.7,1.75055]
[1733585021979,1.04437812,3999.3,3998.7,1.75055]
[1733585022142,0.11417716,3999.2,3998.8,1.75052]
[1733585022437,0.11417716,3999.2,3998.8,0.256112]
[1733585022641,1.04437812,3999.4,3999.0,0.8106]
[1733585022818,1.04437812,3999.8,3999.5,1.75021]
[1733585023214,1.04437812,3999.9,3999.7,1.75011]
[1733585023707,1.04437812,4000.0,3999.7,1.75011]
[1733585023905,1.29894888,3999.9,3999.7,1.75011]
[1733585024136,1.04437812,4000.0,3999.7,1.75011]
[1733585024346,2.34336309,3999.9,3999.7,1.75011]
[1733585024547,1.04437812,3999.9,3999.7,1.75011]
[1733585025204,1.04437812,3999.9,3999.2,1.75035]
[1733585025647,1.04437812,3999.9,3999.6,1.75017]
[1733585026556,1.04437812,4000.0,3999.6,1.75017]
[1733585026753,1.29901382,3999.9,3999.6,1.75017]
[1733585026949,1.04437812,4000.0,3999.6,1.75017]
[1733585027130,1.29901037,3999.9,3999.6,1.75017]
[1733585027327,1.04437812,4000.0,3999.6,1.75017]
[1733585027516,2.34340651,3999.9,3999.6,1.75017]
[1733585027718,1.04437812,3999.9,3999.4,1.75025]
[1733585028027,1.29903292,3999.8,3999.4,1.75025]
[1733585028220,1.04437812,3999.9,3999.4,1.75025]
[1733585028420,1.29904668,3999.8,3999.4,1.75025]
[1733585028752,1.04437812,3999.9,3999.2,1.75034]
[1733585029063,1.29905201,3999.8,3999.2,1.75034]
[1733585029243,1.04437812,3999.9,3999.2,1.75034]
[1733585029474,1.29905303,3999.8,3999.2,1.75034]
[1733585029751,1.04437812,3999.8,3999.2,1.75034]
[1733585029953,1.29908263,3999.7,3999.2,1.75034]
[1733585030160,1.04437812,3999.8,3999.3,1.7503]
[1733585030549,1.29913005,3999.7,3999.3,1.7503]
[1733585030722,1.04437812,3999.8,3999.3,1.7503]
[1733585030920,1.29912927,3999.7,3999.3,1.7503]
[1733585031221,1.04437812,3999.9,3999.4,1.75025]
[1733585031449,1.29913603,3999.8,3999.4,1.75025]
[1733585031649,1.04437812,3999.9,3999.4,1.75025]
[1733585031856,1.29914254,3999.8,3999.4,1.75025]
[1733585032049,1.04437812,3999.9,3999.4,1.75025]
[1733585032228,2.34351704,3999.8,3999.4,1.75025]
[1733585032422,1.04437812,3999.8,3999.4,1.75025]
[1733585032647,0.11435076,3999.7,3999.4,1.75025]
[1733585033719,1.04437812,3999.9,3999.4,1.75025]
[1733585033926,1.29926831,3999.8,3999.4,1.75025]
[1733585034151,0.11435076,3999.8,3999.4,1.75025]
[1733585034334,1.29935378,3999.7,3999.4,1.75025]
[1733585034644,0.11432183,3999.6,3999.4,1.75025]
[1733585035085,1.04437812,3999.8,3999.1,1.75035]
[1733585035257,0.11432183,3999.5,3999.0,0.8106]
[1733585035428,1.29955272,3999.4,3998.6,0.7895]
[1733585035743,1.15863244,3999.4,3998.6,0.7895]
[1733585035925,1.15863244,3999.4,3998.7,1.75056]
[1733585036120,1.15863244,3999.4,3998.6,0.7895]
[1733585036334,1.15863244,3999.4,3998.9,1.75046]
[1733585036560,1.29960153,3999.3,3998.9,1.75046]
[1733585036776,1.04437812,3999.4,3998.9,1.75046]
[1733585036937,1.29960436,3999.3,3998.9,1.75046]
[1733585037139,0.11425432,3999.2,3998.9,1.75046]
[1733585037369,1.04437812,3999.4,3998.9,1.75046]
[1733585037669,0.11425432,3999.1,3998.9,1.75046]
[1733585037832,1.04437812,3999.4,3998.9,1.75046]
[1733585038040,0.11425432,3999.0,3998.9,1.75046]
[1733585038233,1.04437812,3999.4,3998.9,1.75046]
[1733585038434,0.11425432,3999.0,3998.9,1.75046]
[1733585038773,1.04437812,3999.3,3998.9,1.75046]
[1733585038979,0.11425432,3999.0,3998.9,1.75046]
[1733585039142,0.7785,3999.1,3998.3,0.7895]
[1733585039479,0.11406623,3999.0,3998.3,0.7895]
[1733585040029,0.11406623,3999.0,3998.5,1.75064]
[1733585040272,0.11406623,3999.0,3998.3,0.7895]
[1733585040273,0.11406623,3999.0,3998.4,1.7507]
[1733585040472,0.11406623,3999.0,3998.5,1.75063]
[1733585040640,0.11406623,3999.0,3998.4,1.75067]
[1733585040841,0.30776067,3999.0,3998.6,1.75061]
[1733585041057,0.11406623,3999.0,3998.6,1.75061]
[1733585041272,0.11406623,3999.0,3998.4,1.75069]
[1733585041486,0.11406623,3999.0,3998.3,0.7895]
[1733585041773,0.11406623,3999.0,3998.5,1.75062]
[1733585042967,0.11406623,3999.0,3998.0,0.5]
[1733585042968,1.29947212,3998.9,3998.0,1.2559]
[1733585043177,0.19369444,3998.9,3998.2,1.75078]
[1733585043482,2.34384553,3998.8,3998.2,1.75078]
[1733585043631,1.29948305,3998.7,3998.2,1.75078]
[1733585043840,1.04437812,3998.8,3998.3,1.75073]
[1733585044167,0.11392152,3998.6,3998.3,1.75073]
[1733585044346,1.2992969,3998.8,3998.3,1.75073]
[1733585044590,0.11392152,3998.5,3998.1,1.75082]
[1733585044793,1.04437812,3998.9,3998.2,1.75077]
[1733585045153,1.29932821,3998.8,3998.2,1.75077]
[1733585045353,0.11392152,3998.8,3998.2,1.75077]
[1733585045949,1.29912265,3998.9,3998.2,1.75077]
[1733585046158,0.55,3998.9,3998.2,1.75077]
[1733585046457,0.94394453,3998.9,3998.2,1.75077]
[1733585046648,0.11392152,3998.8,3998.2,1.75077]
[1733585046849,0.8108,3998.7,3998.2,1.75077]
[1733585047499,0.11392152,3998.6,3998.2,1.75077]
[1733585048565,0.11392152,3998.6,3998.0,1.2559]
[1733585048767,0.11392152,3998.6,3998.3,1.75074]
[1733585050784,0.11392152,3998.6,3998.0,1.2559]
[1733585051069,0.11392152,3998.6,3998.1,1.75082]
[1733585051602,0.11392152,3998.6,3998.0,1.2559]
[1733585051603,0.11392152,3998.6,3998.0,0.5]
[1733585052201,0.11392152,3998.6,3998.0,2.25087]
[1733585052401,0.11392152,3998.6,3998.1,1.75083]
[1733585055206,0.11392152,3998.6,3998.2,1.75078]
[1733585062902,0.11392152,3998.6,3998.5,1.75065]
[1733585063209,0.7741,3999.0,3998.6,1.75058]
[1733585064445,1.04437812,3999.2,3998.6,0.256338]
[1733585064595,0.7741,3999.4,3999.1,1.75039]
[1733585065732,0.55,3999.6,3999.2,1.7503]
[1733585067467,0.7741,4000.1,3999.6,1.75017]
[1733585067652,0.7741,4000.1,3999.6,1.75015]
[1733585068637,0.7741,4000.1,3999.0,1.89364092]
[1733585068638,0.55,4000.0,3999.4,1.75022]
[1733585068975,0.55,4000.0,3999.5,1.75021]
[1733585074125,0.55,4000.0,3997.8,0.23170124]
[1733585074126,0.7741,3999.9,3997.8,0.23170124]
[1733585074335,0.7741,3999.9,3996.7,3.13299848]
[1733585074336,1.08084092,3998.1,3996.7,3.13299848]
[1733585074651,1.63084092,3998.1,3997.1,1.75124]
[1733585074825,0.79049409,3998.1,3997.1,1.75124]
[1733585075387,1.65602274,3998.1,3997.1,1.75124]
[1733585075967,1.65585855,3998.1,3997.1,1.75124]
[1733585076170,0.79049409,3998.1,3997.1,1.75124]
[1733585076376,0.79049409,3998.1,3996.8,0.8128]
[1733585076827,0.79049409,3998.1,3996.9,1.75135]
[1733585077659,3.42909479,3998.1,3996.5,0.8128]
[1733585077980,7.15828416,3998.1,3996.3,1.75158]
[1733585078192,7.68047322,3998.1,3996.3,1.75158]
[1733585078717,5.59171697,3998.1,3996.3,1.75158]
[1733585078868,3.84088697,3998.1,3996.8,1.75136]
[1733585079335,3.83969032,3998.1,3996.8,1.75136]
[1733585079839,3.83969032,3998.1,3996.5,1.75149]
[1733585080045,3.83969032,3998.1,3996.6,1.75147]
[1733585080257,4.8850486,3998.1,3996.6,1.75147]
[1733585080660,5.33902328,3998.1,3996.6,1.75147]